[Event "Titled Tuesday Blitz June 6 Early 2023"]
[White "Guerra Tulcan, Lenin"]
[Black "Da Silva, Lindolfo Luiz"]
[WhiteFideId "3601382"]
[BlackFideId "2106558"]
[WhiteElo "2368"]
[BlackElo "2359"]
[Result "1-0"]
[Round "3"]
[TimeControl "180+2"]
[Date "2023.06.06"]
[WhiteClock "0:00:51"]
[BlackClock "0:00:04"]
[Board "120"]

1. e4 {[%clk 0:02:59]}  c5 {[%clk 0:02:56]} 2. Nf3 {[%clk 0:02:59]}  Nc6 {[%clk 0:02:55]} 3. d4 {[%clk 0:02:59]}  cxd4 {[%clk 0:02:56]} 4. Nxd4 {[%clk 0:02:59]}  Nf6 {[%clk 0:02:57]} 5. Nc3 {[%clk 0:02:59]}  e5 {[%clk 0:02:57]} 6. Ndb5 {[%clk 0:02:55]}  d6 {[%clk 0:02:57]} 7. Bg5 {[%clk 0:02:53]}  a6 {[%clk 0:02:57]} 8. Na3 {[%clk 0:02:54]}  b5 {[%clk 0:02:57]} 9. Nd5 {[%clk 0:02:54]}  Be7 {[%clk 0:02:58]} 10. Bxf6 {[%clk 0:02:54]}  Bxf6 {[%clk 0:02:58]} 11. c4 {[%clk 0:02:55]}  b4 {[%clk 0:02:57]} 12. Nc2 {[%clk 0:02:55]}  O-O {[%clk 0:02:58]} 13. Bd3 {[%clk 0:02:55]}  Qa5 {[%clk 0:02:54]} 14. b3 {[%clk 0:02:55]}  Bd8 {[%clk 0:02:55]} 15. O-O {[%clk 0:02:54]}  Bb6 {[%clk 0:02:55]} 16. Kh1 {[%clk 0:02:49]}  Bc5 {[%clk 0:02:47]} 17. Qd2 {[%clk 0:02:34]}  g6 {[%clk 0:02:27]} 18. a3 {[%clk 0:02:25]}  Qd8 {[%clk 0:00:57]} 19. axb4 {[%clk 0:02:19]}  Bd4 {[%clk 0:00:56]} 20. Ra2 {[%clk 0:02:12]}  f5 {[%clk 0:00:54]} 21. b5 {[%clk 0:02:08]}  Nb8 {[%clk 0:00:47]} 22. bxa6 {[%clk 0:02:05]}  Bxa6 {[%clk 0:00:31]} 23. Nxd4 {[%clk 0:02:04]}  exd4 {[%clk 0:00:26]} 24. Rfa1 {[%clk 0:02:04]}  Rf7 {[%clk 0:00:17]} 25. exf5 {[%clk 0:01:14]}  gxf5 {[%clk 0:00:18]} 26. Qf4 {[%clk 0:01:10]}  Qd7 {[%clk 0:00:16]} 27. Nb6 {[%clk 0:01:09]}  Qb7 {[%clk 0:00:11]} 28. Nxa8 {[%clk 0:01:07]}  Qxa8 {[%clk 0:00:12]} 29. Qg5+ {[%clk 0:01:05]}  Kf8 {[%clk 0:00:10]} 30. Qd8+ {[%clk 0:01:04]}  Kg7 {[%clk 0:00:10]} 31. Rxa6 {[%clk 0:01:03]}  Qb7 {[%clk 0:00:10]} 32. Qg5+ {[%clk 0:01:01]}  Kf8 {[%clk 0:00:10]} 33. Rxd6 {[%clk 0:01:01]}  Nc6 {[%clk 0:00:08]} 34. Qh6+ {[%clk 0:00:58]}  Kg8 {[%clk 0:00:07]} 35. Rxc6 {[%clk 0:00:58]}  Rf8 {[%clk 0:00:03]} 36. Bxf5 {[%clk 0:00:53]}  Qf7 {[%clk 0:00:03]} 37. Be6 {[%clk 0:00:52]}  d3 {[%clk 0:00:03]} 38. Bxf7+ {[%clk 0:00:51]}  Rxf7 {[%clk 0:00:04]} 39. Rc8+ {[%clk 0:00:51]}  Rf8 {[%clk 0:00:04]} 40. Qxf8# {[%clk 0:00:51]} 1-0


[Site "https://www.chess.com"]

[Event "Titled Tuesday Blitz June 6 Early 2023"]
[White "Mihailidis, Anastasios"]
[Black "Bruedigam, Martin"]
[WhiteFideId "4205588"]
[BlackFideId "24608033"]
[WhiteElo "2312"]
[BlackElo "2331"]
[Result "1-0"]
[Round "3"]
[TimeControl "180+2"]
[Date "2023.06.06"]
[WhiteClock "0:01:27"]
[BlackClock "0:00:11"]
[Board "121"]

1. e4 {[%clk 0:03:00]}  c6 {[%clk 0:02:46]} 2. d4 {[%clk 0:03:00]}  d5 {[%clk 0:02:47]} 3. exd5 {[%clk 0:03:01]}  cxd5 {[%clk 0:02:47]} 4. Bd3 {[%clk 0:03:02]}  Nc6 {[%clk 0:02:47]} 5. c3 {[%clk 0:03:02]}  Nf6 {[%clk 0:02:47]} 6. Bf4 {[%clk 0:03:02]}  Bg4 {[%clk 0:02:48]} 7. Qb3 {[%clk 0:03:01]}  Qc8 {[%clk 0:02:48]} 8. Nd2 {[%clk 0:03:01]}  e6 {[%clk 0:02:49]} 9. Ngf3 {[%clk 0:03:01]}  Be7 {[%clk 0:02:49]} 10. O-O {[%clk 0:03:01]}  O-O {[%clk 0:02:49]} 11. h3 {[%clk 0:03:01]}  Bh5 {[%clk 0:02:50]} 12. Rfe1 {[%clk 0:03:01]}  Bg6 {[%clk 0:02:48]} 13. Bxg6 {[%clk 0:03:01]}  hxg6 {[%clk 0:02:49]} 14. Rac1 {[%clk 0:03:01]}  a6 {[%clk 0:02:48]} 15. Ne5 {[%clk 0:03:00]}  Nxe5 {[%clk 0:02:47]} 16. Bxe5 {[%clk 0:03:01]}  Qc6 {[%clk 0:02:46]} 17. Bxf6 {[%clk 0:02:57]}  gxf6 {[%clk 0:02:45]} 18. c4 {[%clk 0:02:54]}  Rfd8 {[%clk 0:02:23]} 19. c5 {[%clk 0:02:51]}  Rab8 {[%clk 0:02:16]} 20. Qc3 {[%clk 0:02:50]}  Kg7 {[%clk 0:02:02]} 21. b4 {[%clk 0:02:50]}  g5 {[%clk 0:02:02]} 22. Qb3 {[%clk 0:02:46]}  Rh8 {[%clk 0:01:59]} 23. a4 {[%clk 0:02:46]}  Qc7 {[%clk 0:01:49]} 24. Qg3 {[%clk 0:02:40]}  Qd7 {[%clk 0:01:46]} 25. Qb3 {[%clk 0:02:31]}  Rh4 {[%clk 0:01:42]} 26. Nf3 {[%clk 0:02:28]}  Rh5 {[%clk 0:01:00]} 27. b5 {[%clk 0:02:28]}  axb5 {[%clk 0:00:59]} 28. Qxb5 {[%clk 0:02:28]}  Qc7 {[%clk 0:00:57]} 29. Qb6 {[%clk 0:02:15]}  Qf4 {[%clk 0:00:48]} 30. Qb3 {[%clk 0:02:09]}  g4 {[%clk 0:00:44]} 31. hxg4 {[%clk 0:02:01]}  Qxg4 {[%clk 0:00:39]} 32. Kf1 {[%clk 0:01:45]}  Bd8 {[%clk 0:00:20]} 33. Ke2 {[%clk 0:01:43]}  Qe4+ {[%clk 0:00:19]} 34. Qe3 {[%clk 0:01:42]}  Qf5 {[%clk 0:00:13]} 35. Rh1 {[%clk 0:01:40]}  Ra8 {[%clk 0:00:12]} 36. g4 {[%clk 0:01:34]}  Rxh1 {[%clk 0:00:11]} 37. gxf5 {[%clk 0:01:34]}  Rxc1 {[%clk 0:00:12]} 38. Qxc1 {[%clk 0:01:35]}  Rxa4 {[%clk 0:00:11]} 39. fxe6 {[%clk 0:01:33]}  fxe6 {[%clk 0:00:12]} 40. Qb2 {[%clk 0:01:32]}  Ra7 {[%clk 0:00:11]} 41. Qb5 {[%clk 0:01:27]} 1-0


[Site "https://www.chess.com"]

[Event "Titled Tuesday Blitz June 6 Early 2023"]
[White "Li, Hui"]
[Black "Vestby-Ellingsen, Mads"]
[WhiteFideId "15400310"]
[BlackFideId "1520857"]
[WhiteElo "1966"]
[BlackElo "2247"]
[Result "1-0"]
[Round "3"]
[TimeControl "180+2"]
[Date "2023.06.06"]
[WhiteClock "0:00:47"]
[BlackClock "0:00:54"]
[Board "123"]

1. e4 {[%clk 0:03:00]}  d6 {[%clk 0:02:58]} 2. d4 {[%clk 0:03:00]}  Nf6 {[%clk 0:02:58]} 3. Nc3 {[%clk 0:03:01]}  e5 {[%clk 0:02:59]} 4. dxe5 {[%clk 0:03:01]}  dxe5 {[%clk 0:02:59]} 5. Qxd8+ {[%clk 0:03:02]}  Kxd8 {[%clk 0:03:00]} 6. Bg5 {[%clk 0:03:03]}  Be6 {[%clk 0:02:53]} 7. O-O-O+ {[%clk 0:03:03]}  Nd7 {[%clk 0:02:52]} 8. f4 {[%clk 0:03:03]}  h6 {[%clk 0:02:48]} 9. Bxf6+ {[%clk 0:02:54]}  gxf6 {[%clk 0:02:49]} 10. f5 {[%clk 0:02:55]}  Bxa2 {[%clk 0:02:47]} 11. Nxa2 {[%clk 0:02:54]}  Bc5 {[%clk 0:02:48]} 12. Nf3 {[%clk 0:02:50]}  Ke7 {[%clk 0:02:46]} 13. Bc4 {[%clk 0:02:47]}  c6 {[%clk 0:02:46]} 14. Bxf7 {[%clk 0:02:42]}  b5 {[%clk 0:02:44]} 15. Be6 {[%clk 0:02:39]}  Nb6 {[%clk 0:02:44]} 16. Kb1 {[%clk 0:02:22]}  a5 {[%clk 0:02:44]} 17. Nc1 {[%clk 0:02:21]}  a4 {[%clk 0:02:40]} 18. Nh4 {[%clk 0:02:13]}  Rhd8 {[%clk 0:02:35]} 19. Ng6+ {[%clk 0:02:08]}  Ke8 {[%clk 0:02:36]} 20. g4 {[%clk 0:01:50]}  a3 {[%clk 0:02:30]} 21. b3 {[%clk 0:01:43]}  Bd4 {[%clk 0:02:09]} 22. Ka2 {[%clk 0:01:36]}  c5 {[%clk 0:02:04]} 23. Ne2 {[%clk 0:01:34]}  Bb2 {[%clk 0:01:55]} 24. h4 {[%clk 0:01:25]}  Ra7 {[%clk 0:01:18]} 25. Rxd8+ {[%clk 0:01:11]}  Kxd8 {[%clk 0:01:19]} 26. g5 {[%clk 0:01:12]}  Rh7 {[%clk 0:01:07]} 27. gxf6 {[%clk 0:01:07]}  Ke8 {[%clk 0:01:06]} 28. f7+ {[%clk 0:01:05]}  Rxf7 {[%clk 0:01:06]} 29. Bxf7+ {[%clk 0:01:06]}  Kxf7 {[%clk 0:01:07]} 30. Rd1 {[%clk 0:01:03]}  Nc8 {[%clk 0:01:01]} 31. c3 {[%clk 0:00:56]}  c4 {[%clk 0:00:56]} 32. bxc4 {[%clk 0:00:53]}  bxc4 {[%clk 0:00:57]} 33. Nxe5+ {[%clk 0:00:53]}  Kf6 {[%clk 0:00:56]} 34. Nxc4 {[%clk 0:00:53]}  h5 {[%clk 0:00:56]} 35. Nxb2 {[%clk 0:00:52]}  axb2 {[%clk 0:00:56]} 36. Kxb2 {[%clk 0:00:53]}  Nb6 {[%clk 0:00:54]} 37. Kb3 {[%clk 0:00:52]}  Ke5 {[%clk 0:00:55]} 38. Rd8 {[%clk 0:00:47]}  Kf6 {[%clk 0:00:53]} 39. Rd6+ {[%clk 0:00:47]}  Ke5 {[%clk 0:00:54]} 40. Rxb6 {[%clk 0:00:47]} 1-0


[Site "https://www.chess.com"]

[Event "Titled Tuesday Blitz June 6 Early 2023"]
[White "Sarkar, Justin"]
[Black "Terletsky, Oleg"]
[WhiteFideId "2010011"]
[BlackFideId "14116774"]
[WhiteElo "2151"]
[BlackElo "2126"]
[Result "0-1"]
[Round "3"]
[TimeControl "180+2"]
[Date "2023.06.06"]
[WhiteClock "0:00:01"]
[BlackClock "0:00:08"]
[Board "126"]

1. d4 {[%clk 0:02:50]}  Nf6 {[%clk 0:02:59]} 2. c4 {[%clk 0:02:48]}  g6 {[%clk 0:02:59]} 3. Nc3 {[%clk 0:02:43]}  Bg7 {[%clk 0:02:59]} 4. e4 {[%clk 0:02:39]}  d6 {[%clk 0:02:59]} 5. Nf3 {[%clk 0:02:31]}  O-O {[%clk 0:02:58]} 6. Be2 {[%clk 0:02:28]}  e5 {[%clk 0:02:58]} 7. Bg5 {[%clk 0:02:12]}  h6 {[%clk 0:02:34]} 8. Bh4 {[%clk 0:02:11]}  exd4 {[%clk 0:02:31]} 9. Nxd4 {[%clk 0:02:09]}  Nc6 {[%clk 0:02:31]} 10. Nxc6 {[%clk 0:01:57]}  bxc6 {[%clk 0:02:32]} 11. O-O {[%clk 0:01:55]}  Re8 {[%clk 0:02:26]} 12. f3 {[%clk 0:01:44]}  Rb8 {[%clk 0:02:19]} 13. Qd2 {[%clk 0:01:40]}  g5 {[%clk 0:02:15]} 14. Bf2 {[%clk 0:01:39]}  c5 {[%clk 0:02:15]} 15. Rad1 {[%clk 0:01:35]}  Nh5 {[%clk 0:02:12]} 16. Rfe1 {[%clk 0:01:29]}  Be6 {[%clk 0:02:06]} 17. g3 {[%clk 0:01:24]}  Nf6 {[%clk 0:01:42]} 18. b3 {[%clk 0:01:20]}  Nd7 {[%clk 0:01:41]} 19. f4 {[%clk 0:01:14]}  gxf4 {[%clk 0:01:31]} 20. gxf4 {[%clk 0:01:14]}  f5 {[%clk 0:01:31]} 21. Bh5 {[%clk 0:01:00]}  Rf8 {[%clk 0:01:23]} 22. exf5 {[%clk 0:00:40]}  Bxf5 {[%clk 0:01:23]} 23. Nd5 {[%clk 0:00:40]}  Bh7 {[%clk 0:00:39]} 24. Kh1 {[%clk 0:00:20]}  Kh8 {[%clk 0:00:30]} 25. Ne7 {[%clk 0:00:14]}  Nf6 {[%clk 0:00:20]} 26. Ng6+ {[%clk 0:00:14]}  Kg8 {[%clk 0:00:20]} 27. Ne7+ {[%clk 0:00:12]}  Kh8 {[%clk 0:00:20]} 28. Ng6+ {[%clk 0:00:12]}  Bxg6 {[%clk 0:00:20]} 29. Bxg6 {[%clk 0:00:11]}  Qd7 {[%clk 0:00:20]} 30. Rg1 {[%clk 0:00:10]}  Qc6+ {[%clk 0:00:16]} 31. Rg2 {[%clk 0:00:08]}  Ng4 {[%clk 0:00:16]} 32. f5 {[%clk 0:00:03]}  Qf3 {[%clk 0:00:08]} 33. Qe1 {[%clk 0:00:01]}  Nxf2+ {[%clk 0:00:07]} 34. Qxf2 {[%clk 0:00:01]}  Qxd1+ {[%clk 0:00:08]} 0-1


[Site "https://www.chess.com"]

[Event "Titled Tuesday Blitz June 6 Early 2023"]
[White "Moral Garcia, Serafin"]
[Black "Jiganchine, Roman"]
[WhiteFideId "2201925"]
[BlackFideId "2603667"]
[WhiteElo "2274"]
[BlackElo "2299"]
[Result "1-0"]
[Round "3"]
[TimeControl "180+2"]
[Date "2023.06.06"]
[WhiteClock "0:00:15"]
[BlackClock "0:00:03"]
[Board "127"]

1. c4 {[%clk 0:03:00]}  c6 {[%clk 0:02:54]} 2. e4 {[%clk 0:03:00]}  d5 {[%clk 0:02:54]} 3. exd5 {[%clk 0:03:00]}  cxd5 {[%clk 0:02:53]} 4. d4 {[%clk 0:03:01]}  Nf6 {[%clk 0:02:52]} 5. Nc3 {[%clk 0:03:01]}  Nc6 {[%clk 0:02:52]} 6. Bg5 {[%clk 0:02:59]}  dxc4 {[%clk 0:02:40]} 7. Bxc4 {[%clk 0:02:58]}  h6 {[%clk 0:02:38]} 8. Be3 {[%clk 0:02:54]}  e6 {[%clk 0:02:28]} 9. Nf3 {[%clk 0:02:54]}  Be7 {[%clk 0:02:21]} 10. O-O {[%clk 0:02:50]}  O-O {[%clk 0:02:21]} 11. Qd2 {[%clk 0:02:50]}  Ng4 {[%clk 0:02:02]} 12. Bf4 {[%clk 0:02:47]}  Bd6 {[%clk 0:01:52]} 13. Rad1 {[%clk 0:02:42]}  Nb4 {[%clk 0:01:36]} 14. a3 {[%clk 0:02:34]}  Nd5 {[%clk 0:01:33]} 15. Bxd5 {[%clk 0:02:22]}  exd5 {[%clk 0:01:28]} 16. Nxd5 {[%clk 0:02:19]}  Bxa3 {[%clk 0:01:14]} 17. Nc7 {[%clk 0:02:15]}  Bd6 {[%clk 0:01:01]} 18. Nxa8 {[%clk 0:02:13]}  Bf5 {[%clk 0:00:58]} 19. h3 {[%clk 0:02:01]}  Nf6 {[%clk 0:00:57]} 20. Rfe1 {[%clk 0:02:00]}  Nd5 {[%clk 0:00:49]} 21. Bxd6 {[%clk 0:01:54]}  Qxd6 {[%clk 0:00:49]} 22. Re5 {[%clk 0:01:39]}  Be6 {[%clk 0:00:48]} 23. Rde1 {[%clk 0:01:27]}  Rxa8 {[%clk 0:00:47]} 24. Nh4 {[%clk 0:01:23]}  Qd7 {[%clk 0:00:42]} 25. Qd3 {[%clk 0:01:04]}  Rc8 {[%clk 0:00:38]} 26. Nf5 {[%clk 0:01:00]}  a6 {[%clk 0:00:25]} 27. Ne3 {[%clk 0:00:42]}  Nf4 {[%clk 0:00:19]} 28. Qe4 {[%clk 0:00:41]}  Ng6 {[%clk 0:00:18]} 29. Rc5 {[%clk 0:00:36]}  Re8 {[%clk 0:00:17]} 30. Qc2 {[%clk 0:00:26]}  Bxh3 {[%clk 0:00:13]} 31. Rc7 {[%clk 0:00:20]}  Qe6 {[%clk 0:00:09]} 32. d5 {[%clk 0:00:19]}  Qf6 {[%clk 0:00:06]} 33. gxh3 {[%clk 0:00:17]}  Qg5+ {[%clk 0:00:06]} 34. Kf1 {[%clk 0:00:16]}  Nf4 {[%clk 0:00:06]} 35. Qf5 {[%clk 0:00:15]}  Qh4 {[%clk 0:00:03]} 36. Qxf7+ {[%clk 0:00:15]}  Kh8 {[%clk 0:00:03]} 37. Qxg7# {[%clk 0:00:15]} 1-0


[Site "https://www.chess.com"]

[Event "Titled Tuesday Blitz June 6 Early 2023"]
[White "Srdanovic, Jovana"]
[Black "Yonal, Timur"]
[WhiteFideId "954810"]
[BlackFideId "44115725"]
[WhiteElo "2155"]
[BlackElo "1966"]
[Result "0-1"]
[Round "3"]
[TimeControl "180+2"]
[Date "2023.06.06"]
[WhiteClock "0:00:08"]
[BlackClock "0:00:14"]
[Board "130"]

1. d4 {[%clk 0:02:59]}  d5 {[%clk 0:02:59]} 2. c4 {[%clk 0:02:57]}  e6 {[%clk 0:03:00]} 3. Nc3 {[%clk 0:02:56]}  a6 {[%clk 0:03:00]} 4. cxd5 {[%clk 0:02:56]}  exd5 {[%clk 0:03:01]} 5. Nf3 {[%clk 0:02:56]}  Nf6 {[%clk 0:03:00]} 6. Bg5 {[%clk 0:02:55]}  c6 {[%clk 0:03:00]} 7. e3 {[%clk 0:02:55]}  Bd6 {[%clk 0:02:59]} 8. Bd3 {[%clk 0:02:54]}  Be6 {[%clk 0:02:59]} 9. O-O {[%clk 0:02:54]}  Nbd7 {[%clk 0:02:59]} 10. h3 {[%clk 0:02:54]}  Qc7 {[%clk 0:02:59]} 11. Rb1 {[%clk 0:02:52]}  h6 {[%clk 0:02:59]} 12. Bxf6 {[%clk 0:02:52]}  Nxf6 {[%clk 0:03:00]} 13. b4 {[%clk 0:02:52]}  O-O {[%clk 0:02:59]} 14. a4 {[%clk 0:02:51]}  g5 {[%clk 0:02:48]} 15. Qc2 {[%clk 0:02:37]}  g4 {[%clk 0:02:40]} 16. hxg4 {[%clk 0:02:38]}  Bxg4 {[%clk 0:02:41]} 17. Nh4 {[%clk 0:02:36]}  Kh8 {[%clk 0:02:39]} 18. Nf5 {[%clk 0:02:31]}  Bh2+ {[%clk 0:02:26]} 19. Kh1 {[%clk 0:02:30]}  Rg8 {[%clk 0:02:25]} 20. f4 {[%clk 0:01:50]}  Bxf5 {[%clk 0:02:02]} 21. Bxf5 {[%clk 0:01:50]}  Bg3 {[%clk 0:02:02]} 22. Rf3 {[%clk 0:01:50]}  Nh5 {[%clk 0:02:02]} 23. Bh3 {[%clk 0:01:47]}  Qe7 {[%clk 0:01:58]} 24. Ne2 {[%clk 0:01:38]}  Qh4 {[%clk 0:01:57]} 25. Nxg3 {[%clk 0:01:31]}  Nxg3+ {[%clk 0:01:58]} 26. Kh2 {[%clk 0:01:29]}  Ne4 {[%clk 0:01:38]} 27. Rbf1 {[%clk 0:00:40]}  Rg3 {[%clk 0:01:32]} 28. Rxg3 {[%clk 0:00:36]}  Qxg3+ {[%clk 0:01:33]} 29. Kh1 {[%clk 0:00:36]}  Qxe3 {[%clk 0:01:27]} 30. Rf3 {[%clk 0:00:27]}  Qxd4 {[%clk 0:01:26]} 31. Bf5 {[%clk 0:00:25]}  Rg8 {[%clk 0:01:21]} 32. Kh2 {[%clk 0:00:23]}  Qg7 {[%clk 0:00:57]} 33. Rh3 {[%clk 0:00:20]}  Nd6 {[%clk 0:00:48]} 34. Bd3 {[%clk 0:00:20]}  f5 {[%clk 0:00:45]} 35. Qe2 {[%clk 0:00:18]}  Ne4 {[%clk 0:00:43]} 36. Bxe4 {[%clk 0:00:18]}  dxe4 {[%clk 0:00:37]} 37. Rh5 {[%clk 0:00:15]}  Qg6 {[%clk 0:00:35]} 38. Kh1 {[%clk 0:00:13]}  Kh7 {[%clk 0:00:34]} 39. Rh3 {[%clk 0:00:13]}  Rd8 {[%clk 0:00:32]} 40. Kh2 {[%clk 0:00:12]}  Qg4 {[%clk 0:00:24]} 41. Qxg4 {[%clk 0:00:11]}  fxg4 {[%clk 0:00:25]} 42. Rh4 {[%clk 0:00:11]}  Rd4 {[%clk 0:00:17]} 43. b5 {[%clk 0:00:11]}  cxb5 {[%clk 0:00:16]} 44. axb5 {[%clk 0:00:10]}  axb5 {[%clk 0:00:16]} 45. Rxg4 {[%clk 0:00:10]}  e3 {[%clk 0:00:16]} 46. Kg1 {[%clk 0:00:08]}  Rd1+ {[%clk 0:00:14]} 0-1


[Site "https://www.chess.com"]

[Event "Titled Tuesday Blitz June 6 Early 2023"]
[White "Zaksaite, Salomeja"]
[Black "Richter, Paul"]
[WhiteFideId "12801496"]
[BlackFideId "2046350"]
[WhiteElo "2059"]
[BlackElo "2522"]
[Result "0-1"]
[Round "3"]
[TimeControl "180+2"]
[Date "2023.06.06"]
[WhiteClock "0:00:17"]
[BlackClock "0:01:34"]
[Board "131"]

1. e4 {[%clk 0:03:00]}  c5 {[%clk 0:02:59]} 2. Nf3 {[%clk 0:02:59]}  d6 {[%clk 0:02:59]} 3. d4 {[%clk 0:02:59]}  cxd4 {[%clk 0:03:00]} 4. Nxd4 {[%clk 0:02:59]}  Nf6 {[%clk 0:03:01]} 5. Nc3 {[%clk 0:02:59]}  g6 {[%clk 0:03:01]} 6. Be2 {[%clk 0:02:57]}  Bg7 {[%clk 0:03:01]} 7. O-O {[%clk 0:02:57]}  O-O {[%clk 0:03:02]} 8. Bg5 {[%clk 0:02:56]}  Nc6 {[%clk 0:03:02]} 9. Nb3 {[%clk 0:02:56]}  Be6 {[%clk 0:02:56]} 10. Kh1 {[%clk 0:02:53]}  a5 {[%clk 0:02:55]} 11. a4 {[%clk 0:02:48]}  Rc8 {[%clk 0:02:49]} 12. f4 {[%clk 0:02:47]}  Nb4 {[%clk 0:02:37]} 13. Nd5 {[%clk 0:02:37]}  Bxd5 {[%clk 0:02:27]} 14. exd5 {[%clk 0:02:23]}  Nxc2 {[%clk 0:02:26]} 15. f5 {[%clk 0:01:17]}  Nxa1 {[%clk 0:02:21]} 16. Nxa1 {[%clk 0:01:09]}  Qb6 {[%clk 0:02:09]} 17. Bb5 {[%clk 0:00:57]}  Ne4 {[%clk 0:01:54]} 18. Bxe7 {[%clk 0:00:55]}  Nf2+ {[%clk 0:01:54]} 19. Rxf2 {[%clk 0:00:55]}  Qxf2 {[%clk 0:01:55]} 20. Bxf8 {[%clk 0:00:53]}  Kxf8 {[%clk 0:01:49]} 21. fxg6 {[%clk 0:00:42]}  hxg6 {[%clk 0:01:47]} 22. Bd3 {[%clk 0:00:18]}  Qxb2 {[%clk 0:01:39]} 23. Nc2 {[%clk 0:00:17]}  Be5 {[%clk 0:01:34]} 0-1


[Site "https://www.chess.com"]

[Event "Titled Tuesday Blitz June 6 Early 2023"]
[White "Rosh Jain"]
[Black "Sharapov, Evgeny"]
[WhiteFideId "25789465"]
[BlackFideId "14103133"]
[WhiteElo "2233"]
[BlackElo "2367"]
[Result "1/2-1/2"]
[Round "3"]
[TimeControl "180+2"]
[Date "2023.06.06"]
[WhiteClock "0:00:39"]
[BlackClock "0:01:28"]
[Board "133"]

1. e4 {[%clk 0:03:00]}  c5 {[%clk 0:02:59]} 2. Nc3 {[%clk 0:03:00]}  Nc6 {[%clk 0:02:59]} 3. f4 {[%clk 0:02:59]}  g6 {[%clk 0:02:59]} 4. Nf3 {[%clk 0:02:59]}  Bg7 {[%clk 0:02:59]} 5. a4 {[%clk 0:02:59]}  e6 {[%clk 0:02:59]} 6. e5 {[%clk 0:02:58]}  d5 {[%clk 0:02:59]} 7. d4 {[%clk 0:02:56]}  cxd4 {[%clk 0:02:59]} 8. Nb5 {[%clk 0:02:56]}  Nge7 {[%clk 0:02:53]} 9. Nd6+ {[%clk 0:02:55]}  Kf8 {[%clk 0:02:54]} 10. Ng5 {[%clk 0:02:55]}  Qa5+ {[%clk 0:02:40]} 11. Bd2 {[%clk 0:02:55]}  Qb6 {[%clk 0:02:40]} 12. Ngxf7 {[%clk 0:02:51]}  Rg8 {[%clk 0:02:39]} 13. Ng5 {[%clk 0:02:51]}  Rh8 {[%clk 0:02:37]} 14. h4 {[%clk 0:02:00]}  h6 {[%clk 0:02:36]} 15. Nxc8 {[%clk 0:01:58]}  Rxc8 {[%clk 0:02:32]} 16. Nxe6+ {[%clk 0:01:58]}  Kf7 {[%clk 0:02:33]} 17. Nxg7 {[%clk 0:01:57]}  Kxg7 {[%clk 0:02:33]} 18. h5 {[%clk 0:01:57]}  g5 {[%clk 0:02:26]} 19. fxg5 {[%clk 0:01:57]}  Nxe5 {[%clk 0:02:26]} 20. gxh6+ {[%clk 0:01:56]}  Kh7 {[%clk 0:02:24]} 21. Bd3+ {[%clk 0:01:38]}  Nxd3+ {[%clk 0:02:23]} 22. cxd3 {[%clk 0:01:39]}  Qe6+ {[%clk 0:02:19]} 23. Qe2 {[%clk 0:01:39]}  Qxe2+ {[%clk 0:02:19]} 24. Kxe2 {[%clk 0:01:39]}  Nf5 {[%clk 0:02:19]} 25. Rh3 {[%clk 0:01:28]}  Rhe8+ {[%clk 0:02:15]} 26. Kd1 {[%clk 0:01:25]}  Ne3+ {[%clk 0:02:10]} 27. Bxe3 {[%clk 0:01:16]}  dxe3 {[%clk 0:02:10]} 28. d4 {[%clk 0:01:12]}  Rc4 {[%clk 0:02:05]} 29. Ke2 {[%clk 0:01:07]}  Rc2+ {[%clk 0:02:02]} 30. Ke1 {[%clk 0:00:56]}  Rxg2 {[%clk 0:02:00]} 31. Ra3 {[%clk 0:00:54]}  Rxb2 {[%clk 0:01:48]} 32. Raxe3 {[%clk 0:00:54]}  Rxe3+ {[%clk 0:01:48]} 33. Rxe3 {[%clk 0:00:55]}  Rb4 {[%clk 0:01:47]} 34. Re5 {[%clk 0:00:38]}  Rxd4 {[%clk 0:01:46]} 35. Re7+ {[%clk 0:00:38]}  Kxh6 {[%clk 0:01:46]} 36. Rxb7 {[%clk 0:00:38]}  Rxa4 {[%clk 0:01:46]} 37. Rb5 {[%clk 0:00:38]}  d4 {[%clk 0:01:37]} 38. Kd2 {[%clk 0:00:38]}  Ra3 {[%clk 0:01:34]} 39. Rd5 {[%clk 0:00:37]}  d3 {[%clk 0:01:25]} 40. Rxd3 {[%clk 0:00:36]}  Rxd3+ {[%clk 0:01:26]} 41. Kxd3 {[%clk 0:00:37]}  Kxh5 {[%clk 0:01:26]} 42. Kc4 {[%clk 0:00:38]}  Kg4 {[%clk 0:01:27]} 43. Kb5 {[%clk 0:00:38]}  Kf5 {[%clk 0:01:27]} 44. Ka6 {[%clk 0:00:39]}  Ke6 {[%clk 0:01:28]} 45. Kxa7 {[%clk 0:00:39]} 1/2-1/2


[Site "https://www.chess.com"]